bitfinex/quotes_ETHUSD_20250323
["timestamp","ask_amount","ask_price","bid_price","bid_amount"]
[1742773030308,0.185543,2000.7,2000.5,5.4858]
[1742773031101,0.185543,2000.7,2000.5,10.53441278]
[1742773031294,0.185543,2000.7,2000.5,38.13643]
[1742773031505,0.185543,2000.7,2000.5,42.56116178]
[1742773032638,0.185543,2000.7,2000.5,33.1378]
[1742773033315,0.185543,2000.7,2000.5,38.13652]
[1742773033827,0.185543,2000.7,2000.5,33.1378]
[1742773034243,3.0,2000.8,2000.5,33.1378]
[1742773034742,0.18518537,2000.7,2000.5,33.1378]
[1742773037744,7.99801,2000.8,2000.5,33.1378]
[1742773037923,0.18624133,2000.7,2000.5,33.1378]
[1742773038849,4.9985,2000.6,2000.5,27.652]
[1742773039149,4.99875,2000.5,2000.2,4.7]
[1742773039314,4.99998,2000.1,1999.8,27.651]
[1742773039517,5.18525709,2000.0,1999.9,4.703]
[1742773039738,5.18524709,2000.0,1999.9,4.703]
[1742773039938,0.18524709,2000.0,1999.9,4.703]
[1742773040143,0.18524709,2000.0,1999.8,27.651]
[1742773040342,5.00025,1999.9,1999.8,27.651]
[1742773040522,5.18529338,1999.9,1999.8,32.354]
[1742773041130,0.18504338,1999.9,1999.8,32.354]
[1742773042224,5.18529338,1999.9,1999.8,32.354]
[1742773042452,5.00025,1999.9,1999.8,32.354]
[1742773042647,0.18478169,1999.9,1999.8,32.354]
[1742773043052,9.99968,2000.1,1999.8,32.354]
[1742773043222,0.18478169,1999.9,1999.8,32.354]
[1742773043425,9.99968,2000.1,1999.8,32.354]
[1742773043668,0.18478169,1999.9,1999.8,32.354]
[1742773043866,10.00026,2000.0,1999.8,32.354]
[1742773044081,5.18503169,1999.9,1999.8,32.354]
[1742773044555,0.18478169,1999.9,1999.8,32.354]
[1742773044757,0.18478169,1999.9,1999.8,27.651]
[1742773044956,0.18478169,1999.9,1999.8,32.352]
[1742773045951,4.99976,2000.1,1999.8,32.352]
[1742773046157,0.18241095,2000.0,1999.8,32.352]
[1742773047437,5.00025,1999.9,1999.8,32.352]
[1742773047635,10.18279095,2000.0,1999.8,32.352]
[1742773047958,0.18225954,1999.9,1999.8,32.352]
[1742773048120,3.0,2000.1,1999.8,36.911474]
[1742773048540,0.1823717,2000.0,1999.8,33.1762]
[1742773057167,0.1823717,2000.0,1999.9,5.00025]
[1742773057370,3.0,2000.1,1999.8,38.17654]
[1742773057575,0.18319234,2000.0,1999.8,33.1762]
[1742773058965,0.18319234,2000.0,1999.8,32.352]
[1742773061747,0.18319234,2000.0,1999.9,0.7747]
[1742773062076,3.0,2000.2,1999.9,0.7747]
[1742773062274,0.18131211,2000.0,1999.9,0.7747]
[1742773062445,7.99951,2000.2,1999.9,0.7747]
[1742773062646,0.18131211,2000.0,1999.9,0.7747]
[1742773062846,7.99951,2000.2,1999.9,4.39613677]
[1742773063048,0.18131211,2000.0,1999.9,0.7747]
[1742773063540,7.99951,2000.2,1999.9,0.7747]
[1742773063745,0.18142425,2000.1,1999.9,0.7747]
[1742773063946,7.99951,2000.2,1999.9,0.7747]
[1742773064177,0.18142425,2000.1,1999.9,0.7747]
[1742773064397,7.99951,2000.2,1999.9,0.7747]
[1742773064550,0.18142425,2000.1,1999.9,0.7747]
[1742773064751,7.99951,2000.2,1999.9,0.7747]
[1742773065060,0.18142425,2000.1,1999.9,0.7747]
[1742773065261,0.18142425,2000.1,1999.9,4.9207443]
[1742773065473,3.0,2000.2,1999.9,4.9207443]
[1742773065776,0.18142425,2000.1,1999.9,4.9207443]
[1742773066081,3.0,2000.2,1999.9,4.9207443]
[1742773066277,0.18131211,2000.0,1999.9,4.9207443]
[1742773066484,3.0,2000.2,1999.9,4.9207443]
[1742773066651,0.18131211,2000.0,1999.9,4.9207443]
[1742773066851,3.0,2000.2,1999.9,4.9207443]
[1742773067054,0.18131211,2000.0,1999.9,4.9207443]
[1742773067284,7.99951,2000.2,1999.9,4.9207443]
[1742773067484,0.18131211,2000.0,1999.9,4.9207443]
[1742773067700,4.99931,2000.3,1999.9,4.9207443]
[1742773067701,7.99948,2000.3,1999.9,4.9207443]
[1742773067859,0.18131211,2000.0,1999.9,4.9207443]
[1742773068049,12.99892,2000.3,1999.9,4.9207443]
[1742773068256,0.18168999,2000.0,1999.9,4.9207443]
[1742773068557,0.18210966,2000.0,1999.9,9.9209143]
[1742773068758,5.37201168,2000.6,2000.1,4.99972]
[1742773068989,3.0,2000.4,2000.2,4.7]
[1742773069189,0.182481,2000.3,2000.2,4.7]
[1742773069497,3.0,2000.4,2000.2,4.7]
[1742773069874,0.182481,2000.3,2000.2,4.7]
[1742773070274,3.0,2000.4,2000.2,4.7]
[1742773070580,0.18237634,2000.3,2000.2,4.7]
[1742773070768,3.0,2000.4,2000.2,4.7]
[1742773070968,0.18237634,2000.3,2000.2,4.7]
[1742773071183,3.0,2000.4,2000.2,4.7]
[1742773071402,0.18237634,2000.3,2000.2,4.7]
[1742773071599,3.0,2000.4,2000.2,4.7]
[1742773071792,0.18237634,2000.3,2000.2,4.7]
[1742773071995,3.0,2000.4,2000.2,4.7]
[1742773072195,0.18237634,2000.3,2000.2,4.7]
[1742773072414,3.0,2000.4,2000.2,4.7]
[1742773072713,0.18237634,2000.3,2000.2,4.7]
[1742773073018,3.0,2000.4,2000.2,4.7]
[1742773073314,0.18237634,2000.3,2000.2,4.7]
[1742773073617,3.0,2000.4,2000.2,4.7]
[1742773073794,0.18237634,2000.3,2000.2,4.7]
[1742773073995,3.0,2000.4,2000.2,4.7]
[1742773074198,0.18237634,2000.3,2000.2,4.7]
[1742773074509,3.0,2000.8,2000.2,5.93329438]
[1742773074821,3.0,2000.5,2000.2,4.7]
[1742773074991,0.18248845,2000.4,2000.2,9.6994]
[1742773075996,0.18248845,2000.4,2000.2,37.3564]
[1742773076296,4.99826,2000.7,2000.2,37.35628]
[1742773076493,4.99826,2000.7,2000.3,0.7723]
[1742773076716,4.99826,2000.7,2000.3,5.18754105]
[1742773076930,0.18271263,2000.6,2000.3,5.18754105]
[1742773078406,4.99826,2000.7,2000.3,5.18754105]
[1742773078593,0.18397121,2000.6,2000.3,5.18754105]
[1742773079024,5.18247121,2000.6,2000.3,5.18754105]
[1742773079222,4.99877,2000.5,2000.3,0.7723]
[1742773079390,0.18411231,2000.4,2000.3,0.7723]
[1742773079722,4.99856,2000.6,2000.3,0.7723]
[1742773080188,0.18422439,2000.5,2000.3,0.7723]
[1742773082631,9.99676,2000.7,2000.3,0.7723]
[1742773082833,5.18284646,2000.6,2000.3,0.7723]
[1742773082993,5.18284646,2000.6,2000.3,5.18758505]
[1742773083494,0.18433646,2000.6,2000.3,5.18758505]
[1742773089398,0.18433646,2000.6,2000.3,10.18682505]
[1742773089628,0.18433646,2000.6,2000.3,5.18758505]
[1742773089934,5.18284646,2000.6,2000.3,5.18758505]
[1742773090332,0.18433646,2000.6,2000.3,5.18758505]
[1742773090502,0.18433646,2000.6,2000.4,0.70072882]
[1742773091027,0.18433646,2000.6,2000.4,5.69963882]
[1742773091325,7.99809,2000.8,2000.4,5.69963882]
[1742773091711,0.18444851,2000.7,2000.4,5.69963882]
[1742773091910,0.18444851,2000.7,2000.5,1.58864639]
[1742773092110,0.18444851,2000.7,2000.6,4.699]
[1742773092802,4.9974,2001.1,2000.6,10.5012]
[1742773092803,7.99764,2001.0,2000.6,10.5012]
[1742773093009,0.18467259,2000.9,2000.6,10.5012]
[1742773093631,0.18467259,2000.9,2000.6,5.5027]
[1742773093833,0.18467259,2000.9,2000.6,7.38325009]
[1742773094716,5.18251259,2000.9,2000.6,7.38325009]
[1742773096438,5.18251259,2000.9,2000.6,35.03525009]
[1742773098250,10.18044259,2000.9,2000.6,35.03525009]
[1742773098539,7.99805,2000.8,2000.6,34.23155009]
[1742773098920,0.18462335,2000.7,2000.6,34.23155009]
[1742773100318,5.18287335,2000.7,2000.6,27.652]
[1742773100513,0.18462335,2000.7,2000.6,32.35]
[1742773101304,0.18462335,2000.7,2000.6,33.1154]
[1742773101512,0.18462335,2000.7,2000.6,38.1139]
[1742773101720,9.99433,2001.2,2000.7,4.99806]
[1742773102016,3.1867623,2001.1,2000.8,4.311196]
[1742773102764,3.1867623,2001.1,2000.8,9.309186]
[1742773102919,0.1867623,2001.1,2000.8,9.35916065]
[1742773103113,0.1867623,2001.1,2000.9,0.7654]
[1742773103456,0.1867623,2001.1,2001.0,4.698]
[1742773103631,0.1867623,2001.1,2001.0,5.6754596]
[1742773105460,7.99679,2001.3,2001.0,5.6754596]
[1742773105746,0.18879641,2001.2,2001.0,5.6754596]
[1742773106778,5.18589641,2001.2,2001.0,5.6754596]
[1742773109761,10.18309641,2001.2,2001.0,5.6754596]
[1742773110078,4.99725,2001.1,2001.0,5.6754596]
[1742773110283,5.18630974,2001.1,2001.0,5.6754596]
[1742773114182,5.18630974,2001.1,2000.9,0.7654]
[1742773114386,5.18630974,2001.1,2001.0,4.697]
[1742773118693,0.18905974,2001.1,2001.0,5.5158]
[1742773118864,4.99701,2001.2,2001.0,5.5158]
[1742773119066,0.18926936,2001.1,2001.0,9.86558094]
[1742773120076,4.99701,2001.2,2001.0,9.86558094]
[1742773120599,9.99424,2001.2,2001.0,9.86558094]
[1742773120965,0.18926936,2001.1,2001.0,9.86558094]
[1742773122109,5.18651936,2001.1,2001.0,9.04678094]
[1742773126502,0.18926936,2001.1,2001.0,9.04678094]
[1742773127481,4.99701,2001.2,2001.0,9.04678094]
[1742773127681,0.18961873,2001.1,2001.0,9.04678094]
[1742773129374,5.18686873,2001.1,2001.0,9.04678094]
[1742773129601,5.18686873,2001.1,2001.0,4.697]
[1742773130503,5.18686873,2001.1,2000.9,27.647]
[1742773130713,4.9975,2001.0,2000.9,32.344]
[1742773130911,9.99735,2000.6,2000.3,35.646]
[1742773131099,5.18795126,2000.5,2000.4,4.697]
[1742773132144,5.18795126,2000.5,2000.3,27.646]
[1742773132350,4.999,2000.4,2000.3,27.646]
[1742773132641,4.999,2000.4,2000.3,32.343]
[1742773132999,5.18772969,2000.4,2000.3,32.343]
[1742773133631,5.18772969,2000.4,2000.3,27.646]
[1742773133933,5.18772969,2000.4,2000.3,32.343]
[1742773138851,8.18772969,2000.4,2000.3,32.343]
[1742773143349,8.18772969,2000.4,2000.3,4.697]
[1742773149977,4.9995,2000.2,2000.1,27.652]
[1742773150356,5.18395142,2000.2,2000.1,32.35]
[1742773151295,8.18395142,2000.2,2000.1,27.652]
[1742773151582,8.00025,1999.9,1999.8,4.698]
[1742773152072,8.18363091,1999.9,1999.8,4.698]
[1742773153683,5.00073,1999.8,1999.5,28.4134]
[1742773153846,5.00079,1999.7,1999.6,4.698]
[1742773154370,5.18258288,1999.7,1999.6,4.698]
[1742773154680,0.18179288,1999.7,1999.6,4.698]
[1742773156184,5.18254288,1999.7,1999.6,4.698]
[1742773156383,5.00075,1999.7,1999.6,4.698]
[1742773156570,5.18254288,1999.7,1999.6,4.698]
[1742773156768,5.001,1999.6,1999.5,27.655]
[1742773157170,5.18107198,1999.6,1999.5,27.655]
[1742773157357,5.18107198,1999.6,1999.5,32.353]
[1742773157911,0.18007198,1999.6,1999.5,32.353]
[1742773158271,3.0,2000.0,1999.6,5.75917]
[1742773158468,3.0,2000.0,1999.8,0.7584]
[1742773158663,3.0,2000.0,1999.9,4.698]
[1742773163071,8.0,2000.0,1999.9,4.698]
[1742773164272,5.00125,1999.5,1999.1,27.66]
[1742773164574,5.00125,1999.5,1999.4,4.699]
[1742773165000,5.15598683,1999.5,1999.4,4.699]
[1742773165300,0.15473683,1999.5,1999.4,5.9216]
[1742773165489,0.15473683,1999.5,1999.4,10.9231]
[1742773165671,3.0,2000.0,1999.7,0.7527]
[1742773165874,8.00004,2000.0,1999.8,4.699]
[1742773166072,0.14227584,1999.9,1999.8,4.699]
[1742773166967,5.00012,2000.0,1999.8,4.699]
[1742773167171,0.14224082,1999.9,1999.8,4.699]
[1742773171278,0.14224082,1999.9,1999.8,6.58806679]
[1742773175322,5.14249082,1999.9,1999.8,4.699]
[1742773175531,5.0005,1999.8,1999.7,27.662]
[1742773175822,8.0005,1999.8,1999.7,32.361]
[1742773175982,8.14442954,1999.8,1999.7,32.361]
[1742773181325,3.14392954,1999.8,1999.7,32.361]
[1742773181706,0.14392954,1999.8,1999.7,32.361]
[1742773182035,5.00007,2000.0,1999.7,35.67842]
[1742773182234,0.12996017,1999.8,1999.7,32.361]
[1742773182431,5.00007,2000.0,1999.7,32.361]
[1742773182636,0.12996017,1999.8,1999.7,32.361]
[1742773183136,5.00028,1999.9,1999.7,32.361]
[1742773183312,0.12996017,1999.8,1999.7,32.361]
[1742773183513,5.00028,1999.9,1999.7,32.361]
[1742773183713,0.12996017,1999.8,1999.7,32.361]
[1742773183915,5.00028,1999.9,1999.7,32.361]
[1742773184240,0.13034542,1999.8,1999.7,32.361]
[1742773184645,5.00028,1999.9,1999.7,32.361]
[1742773184948,0.13037158,1999.8,1999.7,32.361]
[1742773185136,5.00028,1999.9,1999.7,32.361]
[1742773185453,0.13025765,1999.8,1999.7,32.361]
[1742773185836,5.00028,1999.9,1999.7,32.361]
[1742773186145,0.13025765,1999.8,1999.7,32.361]
[1742773186449,5.00028,1999.9,1999.7,32.361]
[1742773186625,0.13025765,1999.8,1999.7,32.361]
[1742773187030,5.00028,1999.9,1999.7,32.361]
[1742773187218,5.13079268,1999.8,1999.7,32.361]
[1742773188048,8.13079268,1999.8,1999.7,32.361]
[1742773188749,8.13079268,1999.8,1999.7,4.699]
[1742773202379,3.13029268,1999.8,1999.7,4.699]
[1742773202769,8.13079268,1999.8,1999.7,4.699]
[1742773204768,3.13029268,1999.8,1999.7,5.4795]
[1742773205341,0.13029268,1999.8,1999.7,6.02745]
[1742773205542,3.0,1999.9,1999.7,6.02745]
[1742773205842,0.12919164,1999.8,1999.7,11.02795]
[1742773206042,0.12919164,1999.8,1999.7,6.02745]
[1742773206242,3.0,2000.0,1999.7,6.02745]
[1742773206443,0.12817107,1999.8,1999.7,6.02745]
[1742773206642,8.00004,2000.0,1999.7,6.02745]
[1742773206872,0.12817107,1999.8,1999.7,6.02745]
[1742773207383,5.0003,1999.9,1999.7,6.02745]
[1742773207589,0.12817107,1999.8,1999.7,6.02745]
[1742773207897,5.0003,1999.9,1999.7,6.02745]
[1742773208112,0.12817107,1999.8,1999.7,6.02745]
[1742773208403,5.0003,1999.9,1999.7,6.02745]
[1742773208607,0.12817107,1999.8,1999.7,6.02745]
[1742773208809,5.0003,1999.9,1999.7,6.02745]
[1742773209129,0.12817107,1999.8,1999.7,6.02745]
[1742773209425,5.0003,1999.9,1999.7,6.02745]
[1742773209591,0.12817107,1999.8,1999.7,6.02745]
[1742773209791,5.0003,1999.9,1999.7,6.02745]
[1742773210103,0.12817107,1999.8,1999.7,6.02745]
[1742773210286,5.12867107,1999.8,1999.6,27.663]
[1742773210497,8.0005,1999.8,1999.7,4.699]
[1742773213606,3.0,1999.8,1999.7,4.699]
[1742773214105,8.0005,1999.8,1999.7,4.699]
[1742773215105,5.00075,1999.7,1999.6,27.663]
[1742773215420,5.12902801,1999.7,1999.6,32.361]
[1742773217099,8.12902801,1999.7,1999.6,32.361]
[1742773220421,8.12902801,1999.7,1999.6,27.663]
[1742773220882,8.12902801,1999.7,1999.6,32.362]
[1742773224010,8.12902801,1999.7,1999.6,4.699]
[1742773226796,5.00142,1999.5,1999.2,27.666]
[1742773226997,0.1265904,1999.4,1999.3,7.4656]
[1742773231232,5.00101,1999.6,1999.3,8.2808]
[1742773231434,0.12670261,1999.5,1999.3,8.2808]
[1742773231824,0.31986631,1999.5,1999.3,8.2808]
[1742773237079,5.32111631,1999.5,1999.3,8.2808]
[1742773237246,5.00108,1999.6,1999.3,8.2808]
[1742773237448,0.31935103,1999.4,1999.3,8.2808]
[1742773237670,5.00108,1999.6,1999.3,8.2808]
[1742773237832,0.31935103,1999.4,1999.3,8.2808]
[1742773238033,5.00108,1999.6,1999.3,8.2808]
[1742773238234,0.31945357,1999.5,1999.3,8.2808]
[1742773238533,5.32075357,1999.5,1999.3,8.2808]
[1742773240575,5.32075357,1999.5,1999.3,7.4656]
[1742773241576,0.31945357,1999.5,1999.3,7.4656]
[1742773241943,5.32075357,1999.5,1999.3,7.4656]
[1742773243497,5.32075357,1999.5,1999.3,4.699]
[1742773243774,5.0015,1999.4,1999.3,4.699]
[1742773244081,5.32087393,1999.4,1999.3,4.699]
[1742773245193,5.00175,1999.3,1999.2,27.666]
[1742773245358,5.32102138,1999.3,1999.2,32.364]
[1742773245991,0.31927138,1999.3,1999.2,41.55716155]
[1742773246287,0.37746606,1999.8,1999.2,41.55716155]
[1742773246288,5.00009,2000.0,1999.6,5.77958]
[1742773246486,10.0003,2000.0,1999.7,4.698]
[1742773246785,0.26695425,1999.9,1999.7,4.698]
[1742773246982,0.26695425,1999.9,1999.7,5.24567]
[1742773247365,3.26695425,1999.9,1999.7,5.24567]
[1742773247588,0.26695425,1999.9,1999.7,5.24567]
[1742773247768,3.26695425,1999.9,1999.7,5.24567]
[1742773249105,5.0005,1999.8,1999.3,5.78035]
[1742773249259,5.0005,1999.8,1999.4,4.698]
[1742773249459,5.26740625,1999.7,1999.4,4.698]
[1742773249659,0.26660625,1999.7,1999.4,9.74926946]
[1742773250056,5.00075,1999.7,1999.4,5.07020747]
[1742773250308,0.26643211,1999.6,1999.5,1.33842075]
[1742773250660,5.00029,1999.9,1999.5,6.33964075]
[1742773250860,0.26643222,1999.6,1999.5,6.33964075]
[1742773251099,5.00029,1999.9,1999.5,6.33964075]
[1742773251301,0.26643222,1999.6,1999.5,6.33964075]
[1742773251476,5.00029,1999.9,1999.5,6.33964075]
[1742773251790,0.26663721,1999.8,1999.5,6.33964075]
[1742773251994,3.0,1999.8,1999.5,6.33964075]
[1742773252204,0.26653472,1999.7,1999.5,6.33964075]
[1742773252389,0.26653472,1999.7,1999.6,0.63396407]
[1742773253077,0.26653472,1999.7,1999.5,1.33842075]
[1742773254103,5.26728472,1999.7,1999.5,1.33842075]
[1742773254605,0.26653472,1999.7,1999.5,1.33842075]
[1742773254807,0.26653472,1999.7,1999.5,29.00342075]
[1742773257424,8.0005,1999.8,1999.5,29.00342075]
[1742773257720,0.26717897,1999.7,1999.5,29.00342075]
[1742773257916,0.26717897,1999.7,1999.6,4.697]
[1742773258124,5.00076,1999.7,1999.6,4.697]
[1742773258424,8.0005,1999.8,1999.6,4.697]
[1742773258582,0.26715511,1999.7,1999.6,4.697]
[1742773258923,8.0005,1999.8,1999.6,8.81530208]
[1742773259222,0.26715522,1999.7,1999.6,8.81530208]
[1742773259428,8.0005,1999.8,1999.6,8.81530208]
[1742773259637,0.26806947,1999.7,1999.6,8.81530208]
[1742773259821,8.0005,1999.8,1999.6,8.81530208]
[1742773260023,0.26806947,1999.7,1999.6,8.81530208]
[1742773260220,8.0005,1999.8,1999.6,8.81530208]
[1742773260425,0.26806947,1999.7,1999.6,8.81530208]
[1742773260727,5.00075,1999.7,1999.6,7.98390208]
[1742773260921,5.00075,1999.7,1999.5,27.665]
[1742773260922,5.001,1999.6,1999.5,27.665]
[1742773261125,5.00077,1999.7,1999.5,32.362]
[1742773261298,0.26784881,1999.6,1999.5,32.362]
[1742773261738,5.00077,1999.7,1999.5,32.362]
[1742773262032,0.26782495,1999.6,1999.5,38.19465]
[1742773262239,0.26782495,1999.6,1999.5,42.514256]
[1742773262538,5.00066,1999.8,1999.5,37.513006]
[1742773262702,5.00066,1999.8,1999.5,33.1934]
[1742773262903,10.0017,1999.7,1999.5,33.1934]
[1742773263105,5.001,1999.6,1999.5,32.362]
[1742773263503,5.26886088,1999.6,1999.5,32.362]
[1742773267166,0.26786088,1999.6,1999.5,32.362]
[1742773267330,5.00076,1999.7,1999.5,35.5982]
[1742773268071,0.26783697,1999.6,1999.5,35.5982]
[1742773268446,5.00076,1999.7,1999.5,35.5982]
[1742773268631,0.26783697,1999.6,1999.5,32.362]
[1742773268830,5.00076,1999.7,1999.5,32.362]
[1742773269031,5.26883697,1999.6,1999.5,32.362]
[1742773269334,5.00133,1999.5,1999.4,27.664]
[1742773269535,5.26901661,1999.5,1999.4,32.361]
[1742773270533,8.26901661,1999.5,1999.4,27.664]
[1742773270854,8.26901661,1999.5,1998.8,5.003]
[1742773270855,5.0025,1999.1,1998.8,28.65054065]
[1742773271056,0.26527085,1999.0,1998.9,10.45943]
[1742773271241,5.00031,1999.9,1999.4,0.7599]
[1742773271444,0.24438033,1999.8,1999.5,9.69824]
[1742773271667,5.0005,1999.8,1999.5,4.697]
[1742773271845,0.24471117,1999.7,1999.5,10.743879]
[1742773272061,3.0,1999.8,1999.5,5.742819]
[1742773272265,8.00067,1999.8,1999.5,5.742819]
[1742773272575,5.24570269,1999.7,1999.5,5.742819]
[1742773272790,5.24570269,1999.7,1999.5,4.697]
[1742773273003,5.00114,1999.6,1999.2,0.7599]
[1742773273171,5.00152,1999.4,1999.0,5.00244]
[1742773273499,10.24827728,1999.3,1999.1,4.697]
[1742773273660,5.00225,1999.1,1999.0,0.46531318]
[1742773273983,0.24349568,1999.1,1999.0,5.53460101]
[1742773274153,5.24574568,1999.1,1999.0,5.53460101]
[1742773274591,5.24574568,1999.1,1999.0,5.06928783]
[1742773275372,5.24574568,1999.1,1999.0,4.697]
[1742773275789,5.00251,1999.0,1998.8,27.665]
[1742773276092,5.00251,1999.0,1998.9,4.697]
[1742773278459,5.00275,1998.9,1998.8,27.665]
[1742773278660,5.00275,1998.9,1998.8,32.362]
[1742773278860,5.2436925,1998.9,1998.8,32.362]
[1742773280988,0.2409425,1998.9,1998.8,32.362]
[1742773281866,5.2436925,1998.9,1998.8,32.362]
[1742773285076,0.2409425,1998.9,1998.8,32.362]
[1742773285395,0.2409425,1998.9,1998.8,4.697]
[1742773285590,5.00251,1999.0,1998.8,4.697]
[1742773285780,0.23816045,1998.9,1998.8,4.697]
[1742773287367,5.24091045,1998.9,1998.8,4.697]
[1742773288903,5.00336,1998.7,1998.5,27.672]
[1742773289198,8.0035,1998.6,1998.5,27.672]
[1742773289393,3.21732582,1998.6,1998.5,32.37]
[1742773290994,8.22082582,1998.6,1998.5,27.672]
[1742773291206,8.22082582,1998.6,1998.5,32.37]
[1742773291669,3.21732582,1998.6,1998.5,32.37]
[1742773293000,0.21732582,1998.6,1998.5,32.37]
[1742773293188,8.00327,1998.7,1998.5,32.37]
[1742773293394,0.21726597,1998.6,1998.5,32.37]
[1742773295510,5.22076597,1998.6,1998.5,32.37]
[1742773299307,0.21726597,1998.6,1998.5,32.37]
[1742773299812,0.21726597,1998.6,1998.5,4.698]
[1742773300010,5.00327,1998.7,1998.5,4.698]
[1742773300182,0.21680388,1998.6,1998.5,4.698]
[1742773300514,5.0035,1998.6,1998.5,4.698]
[1742773306919,10.00674,1998.7,1998.5,4.698]
[1742773307282,5.21941751,1998.6,1998.5,4.698]
[1742773308490,0.21591751,1998.6,1998.5,4.698]
[1742773308990,5.37128352,1998.8,1998.5,4.698]
[1742773309190,0.21599619,1998.7,1998.5,4.698]
[1742773309619,5.21926619,1998.7,1998.5,4.698]
[1742773311302,5.0035,1998.6,1998.5,4.698]
[1742773311686,5.21915635,1998.6,1998.5,4.698]
[1742773319347,0.21565635,1998.6,1998.5,4.698]
[1742773319950,0.21565635,1998.6,1998.5,5.1647664]
[1742773320362,5.21915635,1998.6,1998.5,5.1647664]
[1742773322121,5.21915635,1998.6,1998.5,0.4667664]
[1742773322324,5.21915635,1998.6,1998.5,5.1647664]
[1742773323765,5.21915635,1998.6,1998.5,4.698]
[1742773327166,0.21565635,1998.6,1998.5,4.698]
[1742773327965,0.21565635,1998.6,1998.5,5.16466049]
[1742773330162,10.38303612,1998.8,1998.5,5.16466049]
[1742773330474,5.00302,1998.8,1998.5,5.16466049]
[1742773330633,0.2152334,1998.7,1998.5,5.16466049]
[1742773331545,0.2152334,1998.7,1998.5,4.698]
[1742773333509,5.2185734,1998.7,1998.5,4.698]
[1742773335809,10.2220334,1998.7,1998.5,4.698]
[1742773336217,5.2185734,1998.7,1998.5,4.698]
[1742773339326,10.2220434,1998.7,1998.5,4.698]
[1742773339526,5.2185734,1998.7,1998.5,4.698]
[1742773340033,10.2220034,1998.7,1998.5,4.698]
[1742773340530,5.2185734,1998.7,1998.5,4.698]
[1742773340915,10.2220334,1998.7,1998.5,4.698]
[1742773341114,5.2185734,1998.7,1998.5,4.698]
[1742773343626,5.0035,1998.6,1998.5,4.698]
[1742773343808,8.0035,1998.6,1998.5,4.698]
[1742773344130,8.19723577,1998.6,1998.5,4.698]
[1742773346436,3.0,1998.4,1998.3,27.68]
[1742773346630,3.0,1998.4,1998.3,32.378]
[1742773346836,3.19280234,1998.4,1998.3,32.84469104]
[1742773347033,8.19680234,1998.4,1998.3,32.84469104]
[1742773348008,0.19280234,1998.4,1998.3,32.84469104]
[1742773348224,3.19280234,1998.4,1998.3,32.84469104]
[1742773349741,0.19280234,1998.4,1998.3,33.63619104]
[1742773349943,3.0,1998.6,1998.3,36.99981014]
[1742773349944,8.0036,1998.6,1998.3,36.99981014]
[1742773350123,0.192905,1998.5,1998.3,9.31981014]
[1742773350330,8.0036,1998.6,1998.3,5.95619104]
[1742773350631,0.192905,1998.5,1998.3,5.95619104]
[1742773351049,13.00731,1998.6,1998.3,5.95619104]
[1742773351250,3.0,1998.4,1998.3,5.95619104]
[1742773351608,3.19280234,1998.4,1998.3,5.95619104]
[1742773352149,3.19280234,1998.4,1998.3,6.55181014]
[1742773352464,0.19280234,1998.4,1998.3,6.55181014]
[1742773352847,3.0,1998.5,1998.3,6.55181014]
[1742773353016,0.19280234,1998.4,1998.3,6.55181014]
[1742773354329,3.0,1998.5,1998.3,6.55181014]
[1742773354528,0.19280234,1998.4,1998.3,6.55181014]
[1742773356451,0.19280234,1998.4,1998.3,5.95619104]
[1742773356756,5.19680234,1998.4,1998.3,5.95619104]
[1742773356951,5.19680234,1998.4,1998.3,5.4895]
[1742773357184,8.19680234,1998.4,1998.3,5.4895]
[1742773357346,8.19680234,1998.4,1998.3,4.698]
[1742773357549,3.19280234,1998.4,1998.3,4.698]
[1742773357778,8.19680234,1998.4,1998.3,4.698]
[1742773358878,3.19280234,1998.4,1998.3,4.698]
[1742773359779,3.19280234,1998.4,1998.3,5.16434784]
[1742773360466,8.19680234,1998.4,1998.3,5.16434784]
[1742773360889,3.19280234,1998.4,1998.3,5.16434784]
[1742773366910,8.19680234,1998.4,1998.3,5.16434784]
[1742773367898,3.19280234,1998.4,1998.3,5.16434784]
[1742773374328,8.19680234,1998.4,1998.3,5.16434784]
[1742773374798,3.19280234,1998.4,1998.3,5.98304784]
[1742773375225,3.19280234,1998.4,1998.3,13.92925686]
[1742773375891,0.19280234,1998.4,1998.3,14.39618182]
[1742773376101,8.00339,1998.7,1998.3,15.14324716]
[1742773376811,0.19314857,1998.6,1998.3,15.14324716]
[1742773377010,0.19314857,1998.6,1998.4,0.46692496]
[1742773377206,0.19314857,1998.6,1998.4,1.98124968]
[1742773377602,0.19314857,1998.6,1998.5,0.46634784]
[1742773379018,0.19314857,1998.6,1998.3,8.45865902]
[1742773379400,0.19314857,1998.6,1998.3,13.46287902]
[1742773379721,8.00339,1998.7,1998.4,27.681]
[1742773380019,0.18100456,1998.6,1998.5,2.7681]
[1742773381095,3.0,1998.8,1998.5,4.06202945]
[1742773381417,0.18113112,1998.7,1998.6,5.00328]
[1742773381618,0.18113112,1998.7,1998.6,10.47658]
[1742773381786,3.0,1999.0,1998.6,12.39472827]
[1742773381985,0.18190097,1998.9,1998.6,12.39472827]
[1742773382537,8.00253,1999.0,1998.6,12.39472827]
[1742773382744,0.18182917,1998.9,1998.6,7.39144827]
[1742773383540,0.18182917,1998.9,1998.6,12.39489827]
[1742773383710,0.18182917,1998.9,1998.7,1.23948983]
[1742773384504,0.18182917,1998.9,1998.6,5.4733]
[1742773385346,0.18182917,1998.9,1998.6,10.47669]
[1742773386351,0.18182917,1998.9,1998.7,5.00323]
[1742773386848,0.18182917,1998.9,1998.7,5.05325556]
[1742773387213,0.18182917,1998.9,1998.7,5.00323]
[1742773387413,0.18182917,1998.9,1998.8,0.500323]
[1742773390418,0.18182917,1998.9,1998.8,6.278423]